bitfinex-derivatives/quotes_ETHF0:USTF0_20250106
["timestamp","ask_amount","ask_price","bid_price","bid_amount"]
[1736180999311,8.43660386,3733.7,3733.6,0.26779]
[1736180999500,8.43660386,3733.7,3733.6,2.36598403]
[1736180999808,8.43660386,3733.7,3733.6,43.16598403]
[1736181000708,3.2078,3733.7,3733.6,43.16598403]
[1736181001705,5.22880386,3733.9,3733.8,0.26778]
[1736181001905,5.22880386,3734.0,3733.6,42.89819403]
[1736181002198,5.49656386,3734.0,3733.9,0.26777]
[1736181002711,5.22880386,3734.0,3733.9,0.26777]
[1736181003207,2.0072,3734.1,3734.0,0.26776]
[1736181003208,7.23600386,3734.1,3734.0,0.26776]
[1736181004304,2.0072,3734.1,3734.0,0.26776]
[1736181005605,2.27496,3734.1,3734.0,0.26776]
[1736181005806,2.27416,3734.1,3734.0,0.26776]
[1736181006007,0.66942,3734.0,3733.6,40.8]
[1736181006212,0.26781,3733.5,3733.4,0.2678]
[1736181006414,0.26781,3733.5,3733.3,3.2078]
[1736181006415,0.26778,3733.8,3733.7,0.26778]
[1736181009419,0.26781,3733.6,3733.5,0.26779]
[1736181009614,7.92615386,3733.9,3733.4,0.2678]
[1736181009615,0.26781,3733.5,3733.4,0.2678]
[1736181009812,2.22781,3733.5,3733.4,0.2678]
[1736181010414,1.96,3733.5,3733.4,0.2678]
[1736181010609,1.96,3733.5,3733.4,2.3528]
[1736181010811,1.96,3733.5,3733.4,4.458]
[1736181011514,3.2078,3734.3,3733.4,44.9902]
[1736181011718,3.2078,3734.3,3734.2,0.26775]
[1736181012315,0.26774,3734.4,3733.8,5.07624]
[1736181012316,4.18763,3734.5,3734.4,0.26774]
[1736181014613,0.26774,3734.4,3734.3,0.26774]
[1736181014815,0.26775,3734.3,3734.2,0.26774]
[1736181015119,3.9199,3734.5,3734.1,0.26775]
[1736181015120,0.26776,3734.2,3734.1,0.26775]
[1736181015418,3.9199,3734.5,3733.9,2.085]
[1736181015717,0.26776,3734.1,3734.0,0.26776]
[1736181016513,0.26777,3734.0,3733.9,0.26777]
[1736181016712,3.9199,3734.5,3733.8,3.2078]
[1736181016912,3.9199,3734.5,3734.0,0.26775]
[1736181016913,0.26776,3734.1,3734.0,0.26775]
[1736181019217,0.26777,3734.0,3733.9,0.26777]
[1736181019519,0.26697,3734.0,3733.9,0.26777]
[1736181019719,0.26777,3734.1,3734.0,0.26776]
[1736181019918,0.26777,3734.0,3733.9,0.26777]
[1736181020825,2.66184,3734.5,3734.0,0.26776]
[1736181020826,0.26776,3734.1,3734.0,0.26776]
[1736181021728,0.26777,3734.0,3733.9,0.26777]
[1736181022422,0.26776,3734.1,3734.0,0.26775]
[1736181023421,0.26776,3734.1,3733.8,3.2078]
[1736181023422,1.9925,3734.5,3733.8,3.2078]
[1736181023621,0.26776,3734.2,3734.1,0.26775]
[1736181025630,0.26775,3734.4,3734.3,0.26774]
[1736181026722,2.32845,3734.4,3734.3,0.26774]
[1736181028224,2.0607,3734.4,3734.3,0.26774]
[1736181028529,2.32844,3734.4,3734.3,0.26774]
[1736181028726,2.32844,3734.4,3734.2,0.26774]
[1736181028727,0.26775,3734.3,3734.2,0.26774]
[1736181029022,2.0607,3734.4,3733.8,3.2078]
[1736181029429,0.26775,3734.3,3734.2,0.26774]
[1736181029839,0.26777,3734.1,3734.0,0.26775]
[1736181034532,0.26697,3734.1,3734.0,0.26775]
[1736181035425,0.26697,3734.1,3733.8,3.2078]
[1736181035426,0.94685578,3734.1,3733.8,3.2078]
[1736181035632,1.21462578,3733.9,3733.8,3.47558]
[1736181036231,1.21462578,3733.9,3733.5,0.94685578]
[1736181036232,0.2678,3733.6,3733.5,0.26779]
[1736181036639,0.26782,3733.4,3733.3,0.2678]
[1736181036929,0.26782,3733.4,3733.3,1.21465578]
[1736181037133,0.26782,3733.4,3733.3,0.2678]
[1736181037321,0.26781,3733.6,3733.5,0.26779]
[1736181038333,9.27473243,3733.8,3733.6,0.26779]
[1736181038334,0.26779,3733.7,3733.6,0.26779]
[1736181038631,9.27473243,3733.8,3733.7,0.26779]
[1736181038632,7.25763243,3733.8,3733.7,0.26779]
[1736181038824,5.25933243,3733.8,3733.7,0.26779]
[1736181039820,5.25933243,3733.8,3733.7,2.29499]
[1736181040027,0.26776,3734.1,3733.7,2.29499]
[1736181040333,0.26776,3734.1,3734.0,0.26776]
[1736181043737,7.56728243,3734.2,3734.1,0.26776]
[1736181044124,5.25933243,3734.2,3734.1,0.26776]
[1736181044636,5.25933243,3734.2,3734.1,2.33116]
[1736181045037,0.26774,3734.4,3734.3,0.26774]
[1736181045235,0.26773,3734.5,3734.4,0.26773]
[1736181046150,5.25933243,3734.6,3734.1,4.0617]
[1736181046341,5.25933243,3734.6,3734.5,0.26773]
[1736181046342,0.26772,3734.6,3734.5,0.26773]
[1736181047141,5.52705243,3734.7,3734.6,0.26772]
[1736181049254,5.52625243,3734.7,3734.6,0.26772]
[1736181049734,0.26773,3734.6,3734.5,0.26772]
[1736181051031,0.26773,3734.6,3734.1,4.0926]
[1736181051032,4.1104,3734.8,3734.2,0.6694]
[1736181051231,0.26774,3734.7,3734.6,0.26774]
[1736181055840,0.26776,3734.5,3734.4,0.26775]
[1736181057837,0.26775,3734.6,3734.5,0.26775]
[1736181059146,0.26775,3734.6,3734.5,1.21429353]
[1736181059337,3.47554,3734.7,3734.6,0.26775]
[1736181060144,3.47554,3734.7,3734.6,1.21429353]
[1736181064038,0.26774,3734.7,3734.6,1.21429353]
[1736181064248,0.26694,3734.7,3734.6,1.21429353]
[1736181064744,0.26694,3734.7,3734.6,0.26775]
[1736181064940,0.26694,3734.7,3734.5,0.26775]
[1736181064941,0.26776,3734.6,3734.5,0.26775]
[1736181065943,0.26778,3734.3,3734.2,0.26778]
[1736181067044,0.26776,3734.5,3734.4,0.26775]
[1736181067746,0.26776,3734.4,3734.3,1.21431353]
[1736181070647,0.26776,3734.4,3734.3,0.26777]
[1736181070840,0.26776,3734.4,3734.3,1.21431353]
[1736181071955,0.26776,3734.4,3734.3,0.26777]
[1736181072163,0.26776,3734.4,3734.3,1.21431353]
[1736181072384,0.26776,3734.4,3734.3,0.26777]
[1736181072670,5.52958926,3734.5,3734.4,0.26776]
[1736181073065,5.52958926,3734.5,3734.3,0.94654353]
[1736181073066,5.26182926,3734.5,3734.3,0.94654353]
[1736181073256,0.26776,3734.4,3734.3,1.21431353]
[1736181074284,5.52958926,3734.4,3734.3,0.26777]
[1736181075755,5.26182926,3734.4,3734.3,1.21431353]
[1736181075955,5.52958926,3734.4,3734.3,1.21431353]
[1736181076157,5.52958926,3734.4,3734.3,0.26777]
[1736181076548,0.26776,3734.4,3734.3,0.26777]
[1736181076855,0.26777,3734.3,3734.2,2.42547]
[1736181077051,2.42747,3734.3,3734.2,2.42547]
[1736181079253,2.42667,3734.3,3734.2,2.42547]
[1736181080476,2.1597,3734.3,3734.2,2.42547]
[1736181080649,5.52958926,3734.4,3734.3,0.26777]
[1736181080953,5.52958926,3734.4,3734.3,1.21431353]
[1736181081543,5.52958926,3734.4,3734.3,0.26777]
[1736181082446,0.26776,3734.4,3734.3,0.26777]
[1736181084754,0.94654353,3734.5,3734.4,0.26776]
[1736181084755,0.26776,3734.5,3734.4,0.26776]
[1736181088562,2.0221,3734.7,3734.4,0.94654353]
[1736181088757,11.58462846,3734.8,3734.7,0.26774]
[1736181088957,8.37682846,3734.8,3734.7,0.26774]
[1736181089153,8.37682846,3734.8,3734.7,2.07824]
[1736181089959,8.64455846,3734.8,3734.7,2.07824]
[1736181090154,9.59110199,3734.8,3734.7,2.07824]
[1736181090361,3.28227353,3734.8,3734.7,2.07824]
[1736181090552,2.33573,3734.8,3734.7,2.07824]
[1736181091554,2.33573,3734.8,3734.7,0.26774]
[1736181091859,4.23363,3734.8,3734.7,0.26774]
[1736181092456,3.9659,3734.8,3734.7,3.47554]
[1736181092657,4.23363,3734.8,3734.7,3.47554]
[1736181092957,4.23363,3734.8,3734.7,0.26774]
[1736181092958,2.068,3734.8,3734.7,0.26774]
[1736181093460,2.068,3734.8,3734.7,3.47554]
[1736181093658,0.26773,3734.9,3734.7,3.2078]
[1736181093860,6.30882846,3735.1,3735.0,0.26772]
[1736181094054,6.57653846,3735.1,3735.0,0.26772]
[1736181094255,6.57573846,3735.1,3735.0,0.26772]
[1736181094461,6.57573846,3735.1,3735.0,41.06772]
[1736181095062,0.26771,3735.1,3735.0,41.06772]
[1736181098055,0.26771,3735.1,3735.0,0.26772]
[1736181098261,0.27025319,3735.1,3735.0,0.26772]
[1736181098564,0.26773,3735.0,3734.9,0.26772]
[1736181099176,0.00254319,3735.1,3734.9,0.26772]
[1736181099463,0.26772,3735.0,3734.9,0.26772]
[1736181099968,5.52994621,3735.0,3734.9,0.26772]
[1736181100266,0.00254319,3735.1,3734.9,0.26772]
[1736181100267,0.27025319,3735.1,3735.0,0.26772]
[1736181100768,0.27025319,3735.1,3735.0,43.16516645]
[1736181102169,0.27025319,3735.1,3735.0,41.06772]
[1736181102669,0.00254319,3735.1,3735.0,43.16516645]
[1736181102867,0.27025319,3735.1,3735.0,43.16516645]
[1736181103068,0.00254319,3735.1,3735.0,43.16516645]
[1736181103270,0.27025319,3735.1,3735.0,43.16516645]
[1736181103475,0.00254319,3735.1,3735.0,43.16516645]
[1736181103964,0.27025319,3735.1,3735.0,43.16516645]
[1736181104164,0.00254319,3735.1,3735.0,43.16516645]
[1736181104475,0.27025319,3735.1,3735.0,43.16516645]
[1736181104669,0.00254319,3735.1,3735.0,43.16516645]
[1736181106469,0.00254319,3735.1,3735.0,41.06772]
[1736181109268,0.00174319,3735.1,3735.0,41.06772]
[1736181110166,0.00174319,3735.1,3735.0,43.16516645]
[1736181111070,0.00174319,3735.1,3735.0,42.01387017]
[1736181114776,0.00174319,3735.1,3735.0,43.87007017]
[1736181115475,0.00174319,3735.1,3735.0,42.01387017]
[1736181117785,3.2078,3736.2,3735.0,47.69230034]
[1736181118077,9.46324269,3737.3,3736.3,0.26763]
[1736181118078,5.545,3736.4,3736.3,0.26763]
[1736181118279,5.545,3736.4,3736.3,1.21378017]
[1736181118480,5.545,3736.4,3736.3,42.01378017]
[1736181119079,5.545,3736.4,3736.3,41.06763]
[1736181119284,6.30664007,3737.2,3737.1,0.26757]
[1736181119686,8.17154007,3737.3,3737.2,0.26756]
[1736181120185,6.30664007,3737.3,3737.2,0.26756]
[1736181120386,6.30664007,3737.3,3737.2,2.36269088]
[1736181120885,6.30664007,3737.3,3737.2,43.16269088]
[1736181121389,1.9199,3737.9,3737.2,43.16269088]
[1736181121390,1.9199,3737.9,3737.8,0.26752]
[1736181121778,1.9199,3737.9,3737.8,5.57045088]
[1736181122287,1.9199,3737.9,3737.8,3.47532]
[1736181122582,0.26754,3737.5,3737.4,3.2078]
[1736181122778,5.85333088,3737.8,3737.3,0.26755]
[1736181123088,0.26755,3737.4,3737.3,0.26755]
[1736181123585,5.85333088,3737.8,3737.1,0.26756]
[1736181123586,0.26756,3737.2,3737.1,0.26756]
[1736181123883,5.85333088,3737.8,3736.9,2.09513088]
[1736181124189,0.26754,3737.6,3737.4,0.26754]
[1736181124385,0.26674,3737.5,3737.4,0.26754]
[1736181124590,3.7582,3737.8,3737.2,3.2078]
[1736181124897,1.33698,3739.6,3738.2,0.26749]
[1736181124898,0.26745,3738.7,3738.2,0.26749]
[1736181125185,0.26747,3738.5,3737.9,2.09513088]
[1736181125395,0.26746,3738.6,3738.4,0.26747]
[1736181125888,3.801,3738.7,3738.4,0.26747]
[1736181125889,0.26747,3738.5,3738.4,0.26747]
[1736181126190,0.26747,3738.5,3737.9,2.09513088]
[1736181126378,3.801,3738.7,3738.3,0.26748]
[1736181126584,0.26747,3738.4,3738.3,0.26748]
[1736181126784,0.26746,3738.6,3738.5,0.26746]
[1736181126983,4.06846,3738.7,3738.6,0.26746]
[1736181127292,0.26746,3738.6,3738.5,0.26746]
[1736181127493,3.801,3738.7,3738.2,3.2078]
[1736181127791,3.801,3738.7,3738.3,0.26748]
[1736181128086,3.801,3738.7,3738.2,3.2078]
[1736181128292,0.26748,3738.4,3738.3,0.26748]
[1736181128796,3.801,3738.7,3738.2,3.2078]
[1736181129186,0.26748,3738.4,3738.3,0.26748]
[1736181129488,3.801,3738.7,3738.2,3.47528]
[1736181129489,0.26748,3738.3,3738.2,3.47528]
[1736181129687,0.26748,3738.4,3738.3,0.26748]
[1736181129887,3.801,3738.7,3738.2,3.47528]
[1736181130089,0.26748,3738.4,3738.2,3.47528]
[1736181130388,5.89613088,3738.7,3738.2,3.2078]
[1736181130589,5.89613088,3738.7,3737.8,1.7377]
[1736181130590,2.09513088,3738.4,3737.8,3.2078]
[1736181130795,2.53115,3738.6,3737.9,0.2675]
[1736181130796,0.26751,3738.0,3737.9,0.2675]
[1736181131296,0.93613,3738.5,3737.8,3.47531]
[1736181131482,0.66867,3738.5,3737.8,3.2078]
[1736181131795,0.2675,3738.0,3737.9,0.2675]
[1736181131991,2.09513088,3738.1,3737.4,3.2078]
[1736181132291,0.26754,3737.5,3737.4,3.2078]
[1736181132487,0.26754,3737.5,3737.4,3.47534]
[1736181132889,3.8343,3737.9,3737.4,3.2078]
[1736181133195,0.26752,3737.8,3737.6,0.26752]
[1736181133493,0.66867,3738.6,3737.6,0.26752]
[1736181133494,3.2078,3738.9,3737.7,40.8]
[1736181133695,3.2078,3738.9,3738.0,3.4753]
[1736181133696,1.9154,3738.1,3738.0,3.4753]
[1736181134387,9.51444007,3739.3,3738.0,10.30293088]
[1736181134694,6.30664007,3739.3,3738.7,2.76373088]
[1736181134895,2.09513088,3739.1,3738.6,3.2078]
[1736181135189,2.09513088,3739.1,3738.6,0.26745]
[1736181135190,0.26744,3738.7,3738.6,0.26745]
[1736181135390,1.9154,3739.2,3739.1,0.26741]
[1736181135796,2.18281,3739.2,3738.7,1.8686]
[1736181136090,2.09513088,3739.1,3738.7,0.26744]
[1736181136291,3.88043088,3739.1,3738.6,3.2078]
[1736181136503,1.7853,3739.1,3738.6,3.2078]
[1736181136793,0.26743,3738.8,3738.6,3.2078]
[1736181137005,1.9154,3739.2,3738.6,3.2078]
[1736181137199,0.26736,3739.8,3739.5,0.26737]
[1736181137390,0.26736,3739.7,3739.4,0.26738]
[1736181137590,0.26736,3739.7,3739.5,0.26738]
[1736181137792,1.8782,3739.8,3739.2,2.09513088]
[1736181138192,3.2078,3740.3,3739.5,5.30293088]
[1736181138601,0.26733,3740.2,3740.0,0.26734]
[1736181138794,0.26732,3740.3,3739.7,0.26736]
[1736181139006,0.26734,3740.1,3739.9,0.26734]
[1736181139188,1.7697,3740.4,3739.8,2.09513088]
[1736181139394,2.09513088,3741.2,3739.5,3.87625]
[1736181139395,3.207,3741.1,3740.3,2.09513088]
[1736181139596,3.47427,3741.1,3740.9,0.26727]
[1736181139802,3.2078,3741.5,3740.8,2.09513088]
[1736181140099,3.2078,3741.5,3740.4,1.8884]
[1736181140100,2.09513088,3741.4,3740.4,1.8884]
[1736181140397,2.09513088,3741.4,3740.1,3.2078]
[1736181140398,0.26732,3740.4,3740.1,3.47513]
[1736181140601,0.26732,3740.3,3740.1,3.2078]
[1736181140797,3.2078,3741.1,3740.1,3.2078]
[1736181141003,0.26726,3741.2,3740.8,0.26728]
[1736181141302,3.2078,3741.6,3741.0,2.09513088]
[1736181141494,0.26725,3741.4,3741.1,0.26726]
[1736181141696,0.00996715,3741.9,3741.6,0.049]
[1736181141902,0.00996715,3741.9,3741.8,2.09513088]
[1736181142201,0.00996715,3741.9,3741.8,7.36234088]
[1736181142398,3.2078,3743.3,3743.0,0.26712]
[1736181142600,3.2078,3743.3,3743.1,42.89513088]
[1736181142903,3.2078,3743.3,3743.2,0.26711]
[1736181143097,3.2078,3743.3,3743.1,40.8]
[1736181143293,0.26718,3742.4,3742.2,3.2078]
[1736181143493,3.2078,3743.3,3742.2,3.2078]
[1736181143494,3.5019,3743.2,3742.2,3.2078]
[1736181143699,3.5019,3743.2,3742.3,40.8]
[1736181143895,0.26712,3743.1,3742.3,40.8]
[1736181144198,3.2078,3742.9,3741.8,3.2078]
[1736181144401,0.26723,3741.6,3741.3,3.2078]
[1736181144606,3.2078,3742.1,3741.3,3.2078]
[1736181144798,1.6979,3741.5,3740.9,3.2078]
[1736181145104,1.6979,3741.5,3740.9,3.47508]
[1736181145305,0.26725,3741.3,3740.9,3.2078]
[1736181145502,0.26724,3741.4,3741.0,0.26727]
[1736181145704,1.6979,3741.5,3740.9,3.2078]
[1736181145999,0.26727,3741.0,3740.9,3.2078]
[1736181146198,0.26729,3740.8,3740.5,3.2078]
[1736181146392,0.2673,3740.7,3740.5,3.2078]
[1736181146598,0.2673,3740.6,3740.5,3.2078]
[1736181146799,4.33557027,3741.4,3740.0,3.2078]
[1736181146800,3.2078,3740.9,3740.0,3.2078]
[1736181147003,3.2078,3740.5,3739.6,3.47517]
[1736181147204,3.6045,3740.4,3739.6,3.2078]
[1736181147798,0.26736,3739.9,3739.6,3.2078]
[1736181147995,3.6045,3740.4,3739.6,3.2078]
[1736181147996,0.26736,3739.7,3739.6,3.2078]
[1736181148802,0.66838,3739.9,3739.1,3.2078]
[1736181149100,0.26738,3739.5,3739.2,0.2674]
[1736181149297,0.26738,3739.5,3739.2,41.0674]
[1736181149494,3.2078,3740.0,3739.2,40.8]
[1736181149801,3.6045,3740.4,3739.2,40.8]
[1736181149802,0.26739,3739.3,3739.2,40.8]
[1736181150711,3.2078,3739.6,3738.7,3.2078]
[1736181150910,0.26743,3738.8,3738.7,3.2078]
[1736181151411,0.26746,3738.3,3738.2,3.2078]
[1736181151600,1.7041,3739.1,3738.2,2.60367027]
[1736181151808,0.26742,3739.0,3738.6,6.07891027]
[1736181152003,1.8175,3739.2,3738.6,5.81147027]
[1736181152206,0.26744,3738.7,3738.6,3.2078]
[1736181152600,1.8175,3739.2,3738.4,0.26745]
[1736181152904,1.8175,3739.2,3738.5,0.26745]
[1736181152905,0.26743,3738.8,3738.5,0.26745]
[1736181153102,1.8175,3739.2,3738.6,5.81147027]
[1736181153503,0.26734,3740.0,3739.5,0.26738]
[1736181153804,0.26734,3740.0,3739.0,5.81147027]
[1736181153805,3.47513,3740.2,3739.7,2.60367027]
[1736181154005,3.5766,3740.5,3739.7,2.60367027]
[1736181154209,3.5766,3740.5,3739.4,3.2078]
[1736181154210,1.8725,3740.5,3740.3,0.26731]
[1736181154407,3.4751,3740.6,3740.3,0.26732]
[1736181154709,3.2078,3741.1,3740.5,2.60367027]
[1736181154905,0.2673,3740.6,3740.2,3.47513]
[1736181155096,0.2673,3740.6,3740.2,3.2078]
[1736181155300,0.2673,3740.6,3740.5,40.8]
[1736181155909,0.26729,3740.8,3740.5,40.8]
[1736181156209,0.26729,3740.7,3740.5,40.8]
[1736181156805,0.2673,3740.6,3740.5,40.8]
[1736181157510,0.26734,3740.1,3739.8,0.26736]
[1736181157704,0.26734,3740.0,3739.8,0.26736]
[1736181157905,0.26734,3740.0,3739.7,6.07883027]
[1736181158212,3.2078,3740.7,3739.7,5.81147027]
[1736181158407,3.2078,3740.7,3739.5,3.4524]
[1736181158408,0.2673,3740.6,3740.4,0.26731]
[1736181158909,0.2673,3740.7,3740.3,0.26732]
[1736181159113,1.8725,3741.2,3740.4,0.26731]
[1736181159307,0.2673,3740.6,3740.5,40.8]
[1736181159710,1.8725,3741.2,3740.5,40.8]
[1736181160011,0.2673,3740.6,3740.5,40.8]
[1736181160608,0.2673,3740.6,3740.3,0.26732]
[1736181161011,5.0803,3741.2,3740.2,3.2078]
[1736181161213,5.0803,3741.2,3740.3,41.06732]
[1736181161410,5.0803,3741.2,3740.3,40.8]
[1736181161710,0.26729,3740.8,3740.5,0.2673]
[1736181162106,0.26731,3740.5,3740.3,0.26732]
[1736181162413,0.26731,3740.6,3740.3,0.26732]
[1736181162616,0.26731,3740.6,3740.4,40.8]
[1736181162817,0.26731,3740.6,3740.3,0.26732]
[1736181163122,0.66825,3740.7,3739.8,3.47516]
[1736181163311,3.2078,3740.8,3739.8,3.2078]
[1736181163513,0.26735,3739.9,3739.8,3.2078]
[1736181164116,0.66826,3740.6,3739.8,3.2078]
[1736181164311,1.7776,3740.7,3739.8,3.2078]
[1736181164609,0.26733,3740.2,3740.0,0.26734]
[1736181164808,0.26735,3739.9,3739.8,3.2078]
[1736181165037,1.7776,3740.7,3739.4,4.3928]
[1736181165038,3.8761,3740.4,3739.4,4.3928]
[1736181165311,0.26738,3739.6,3739.4,4.66019]
[1736181165515,0.26738,3739.5,3739.4,4.66019]
[1736181166209,0.26738,3739.5,3739.3,2.60367027]
[1736181166210,1.7961,3739.8,3739.0,3.2078]
[1736181166412,0.2674,3739.2,3739.0,3.2078]
[1736181166720,0.26741,3739.2,3739.1,0.2674]
[1736181167010,0.26741,3739.2,3739.0,0.26741]
[1736181167310,0.26741,3739.1,3739.0,3.47521]
[1736181167512,1.7961,3739.8,3739.0,3.47521]
[1736181167710,0.26741,3739.1,3739.0,3.2078]
[1736181168304,1.7961,3739.8,3739.0,3.2078]
[1736181168513,1.7961,3739.8,3739.3,0.2674]
[1736181168703,1.7961,3739.8,3739.0,3.2078]
[1736181169007,0.26742,3739.2,3739.0,3.47522]
[1736181169208,2.46453,3739.8,3739.1,40.8]
[1736181169209,1.7961,3739.8,3739.1,40.8]
[1736181169509,0.26741,3739.2,3739.1,40.8]
[1736181171215,1.7961,3739.8,3739.1,40.8]
[1736181171518,0.26739,3739.4,3739.2,0.2674]
[1736181171816,0.2674,3739.2,3739.1,41.0674]
[1736181172017,0.2674,3739.2,3739.1,40.8]
[1736181172214,0.26744,3738.7,3738.6,3.2078]
[1736181172812,0.26744,3738.7,3738.6,44.0078]
[1736181173014,1.75,3739.1,3738.6,44.0078]
[1736181173223,3.2078,3739.5,3738.9,2.60367027]
[1736181173413,3.2078,3739.5,3738.6,44.0078]
[1736181173414,3.2078,3739.9,3739.3,2.60367027]
[1736181173619,2.06346,3739.8,3739.7,0.26737]
[1736181174118,2.06346,3739.8,3739.6,3.2078]
[1736181174119,1.7961,3739.8,3739.6,3.2078]
[1736181174315,2.06346,3739.8,3739.7,41.06737]
[1736181174514,1.7961,3739.8,3739.7,41.06737]
[1736181176445,0.26733,3740.2,3740.1,0.26733]
[1736181177127,1.75,3740.4,3740.3,0.26732]
[1736181177515,0.24058318,3741.4,3740.7,0.26729]
[1736181177516,3.2078,3741.1,3740.7,0.26729]
[1736181177718,1.93639,3740.9,3740.8,0.26729]
[1736181177909,1.6691,3740.9,3740.5,2.60367027]
[1736181178122,1.6691,3740.9,3740.8,0.26729]
[1736181179816,1.6691,3740.9,3740.8,3.47509]
[1736181180418,0.26731,3740.5,3740.4,3.2078]
[1736181180624,0.26731,3740.5,3738.8,11.45507459]
[1736181180625,3.2078,3740.5,3739.6,3.2078]
[1736181180817,0.26736,3739.8,3739.7,0.26736]
[1736181181214,1.6641,3740.4,3739.7,3.2078]
[1736181181416,1.6691,3740.9,3740.2,2.60367027]
[1736181181634,1.6691,3740.9,3740.1,3.2078]
[1736181181635,1.6691,3740.9,3740.6,2.60367027]
[1736181181823,0.26729,3740.8,3740.7,0.26729]
[1736181182519,1.6691,3740.9,3740.6,2.60367027]
[1736181182827,1.6691,3740.9,3740.8,0.26729]
[1736181183222,4.9592,3741.6,3741.1,0.26726]
[1736181183412,3.4246,3741.5,3741.0,2.60367027]
[1736181183624,0.26726,3741.2,3741.1,0.26726]
[1736181183816,3.4246,3741.5,3741.0,2.60367027]
[1736181184018,3.4246,3741.5,3740.5,0.66828]
[1736181184019,0.26729,3740.7,3740.6,2.87097027]
[1736181184425,0.26649,3740.7,3740.6,2.87097027]
[1736181184620,3.2078,3741.2,3740.5,3.2078]
[1736181184820,0.66812,3741.4,3740.5,3.2078]
[1736181185124,0.2673,3740.6,3740.5,3.2078]
[1736181185329,0.2673,3740.6,3740.5,3.47511]
[1736181186834,0.2673,3740.6,3740.5,3.2078]
[1736181187831,0.2673,3740.6,3740.5,3.47511]
[1736181188026,3.2078,3741.2,3740.5,3.2078]
[1736181188222,0.26729,3740.8,3740.7,2.60367027]
[1736181188427,0.2673,3740.7,3740.6,0.2673]
[1736181189025,0.2673,3740.7,3740.6,0.26729]
[1736181189730,0.66814,3741.3,3740.5,3.2078]
[1736181190030,0.2673,3740.6,3740.5,3.47511]
[1736181190224,0.2673,3740.6,3740.5,3.2078]
[1736181192035,0.26732,3740.4,3740.3,2.60367027]
[1736181192434,0.26734,3740.0,3739.9,43.67102027]
[1736181192630,0.26732,3740.4,3740.3,0.26732]
[1736181192836,3.2078,3741.4,3740.4,0.6683]
[1736181193036,3.2078,3741.4,3741.2,2.87092027]
[1736181193037,0.26725,3741.3,3741.2,2.87092027]
[1736181193229,0.26725,3741.3,3741.2,2.60367027]
[1736181193434,0.26725,3741.3,3741.2,43.40367027]
[1736181193637,0.26725,3741.3,3741.2,43.67093027]
[1736181194534,0.26725,3741.3,3741.2,43.40367027]
[1736181194736,0.26725,3741.3,3741.2,43.67093027]
[1736181195035,0.26725,3741.3,3741.2,40.8]
[1736181195239,0.26725,3741.3,3741.2,41.06726]
[1736181195437,1.6795,3741.4,3741.0,2.60367027]
[1736181195635,4.8873,3741.4,3741.0,0.26727]
[1736181195844,4.8873,3741.4,3741.2,0.26725]
[1736181195845,0.26726,3741.3,3741.2,0.26725]
[1736181196041,1.6795,3741.4,3741.2,0.26725]
[1736181196042,1.6795,3741.4,3741.3,0.26725]
[1736181196347,0.26726,3741.2,3741.1,0.26726]
[1736181196535,1.94675,3741.4,3741.3,0.26725]
[1736181197132,1.6795,3741.4,3741.3,0.26725]
[1736181197541,1.94674,3741.4,3741.3,0.26725]
[1736181197738,3.2078,3742.0,3741.1,2.60367027]
[1736181197938,3.4242,3742.2,3741.7,5.81147027]
[1736181198139,1.7578,3742.2,3742.1,2.87086027]
[1736181198334,0.26718,3742.3,3742.2,0.26719]
[1736181199137,3.2078,3742.6,3742.1,2.60367027]
[1736181199138,3.2078,3742.6,3742.1,5.81147027]
[1736181199339,4.09205,3742.9,3742.1,5.81147027]
[1736181199539,3.4242,3742.9,3742.1,5.81147027]
[1736181199843,3.4242,3742.9,3742.1,6.07866027]
[1736181199844,0.26719,3742.2,3742.1,6.07866027]
[1736181200040,0.26719,3742.2,3742.1,3.2078]
[1736181200246,0.66791,3742.6,3741.9,0.26721]
[1736181200247,0.2672,3742.0,3741.9,0.26721]
[1736181200443,0.26721,3742.0,3741.9,0.26721]
[1736181200635,3.2078,3742.7,3741.7,4.41387027]
[1736181200835,0.26718,3742.3,3742.2,0.26718]
[1736181201476,0.26719,3742.2,3742.1,0.26719]
[1736181201648,3.2078,3742.7,3741.8,3.2078]
[1736181201948,0.26718,3742.3,3742.2,0.26719]
[1736181202146,0.26718,3742.3,3742.1,0.26719]
[1736181202343,0.2672,3742.1,3742.0,0.2672]
[1736181202643,0.26719,3742.1,3742.0,0.2672]
[1736181202849,0.26719,3742.2,3742.1,0.26719]
[1736181203051,3.2078,3742.7,3741.8,3.2078]
[1736181203354,0.26718,3742.3,3742.2,0.26719]
[1736181204949,0.26719,3742.2,3741.8,3.2078]
[1736181205145,0.66788,3742.8,3741.8,3.2078]
[1736181205342,0.66788,3742.8,3742.2,0.26719]
[1736181205343,0.26718,3742.3,3742.2,0.26719]
[1736181205655,0.26718,3742.4,3742.3,0.26718]
[1736181205844,0.26715,3742.8,3742.2,0.26718]
[1736181206042,0.26715,3742.8,3741.8,3.2078]
[1736181206043,0.26717,3742.5,3742.4,0.26717]
[1736181206245,3.4242,3742.9,3742.2,3.2078]
[1736181206450,3.4242,3742.9,3742.8,0.26714]
[1736181206749,3.4242,3742.9,3742.7,0.26715]
[1736181206750,0.26715,3742.8,3742.7,0.26715]
[1736181206946,1.7578,3742.9,3742.8,0.26714]
[1736181207147,3.2078,3743.1,3743.0,0.26713]
[1736181207348,3.47492,3743.1,3743.0,0.26713]
[1736181207650,3.2078,3743.1,3743.0,41.06713]
[1736181207844,3.47492,3743.1,3743.0,41.06713]
[1736181208039,3.2078,3743.1,3743.0,40.8]
[1736181208248,3.2078,3743.1,3743.0,41.06713]